[Event "Titled Tuesday Blitz August 31 2021"]
[White "Mirzoev, Azer"]
[Black "Tokhirjonova, Gulrukhbegim"]
[WhiteFideId "13400304"]
[BlackFideId "14203626"]
[WhiteElo "2525"]
[BlackElo "2236"]
[Result "0-1"]
[Round "11"]
[TimeControl "180+1"]
[Date "2021.08.31"]
[WhiteClock "0:00:01"]
[BlackClock "0:00:13"]

1. d4 {[%clk 0:03:00]}  Nf6 {[%clk 0:02:55]} 2. c4 {[%clk 0:02:59]}  e6 {[%clk 0:02:53]} 3. Nc3 {[%clk 0:02:58]}  Bb4 {[%clk 0:02:53]} 4. Qc2 {[%clk 0:02:58]}  b6 {[%clk 0:02:52]} 5. a3 {[%clk 0:02:57]}  Bxc3+ {[%clk 0:02:51]} 6. Qxc3 {[%clk 0:02:58]}  Bb7 {[%clk 0:02:51]} 7. Bg5 {[%clk 0:02:58]}  h6 {[%clk 0:02:51]} 8. Bh4 {[%clk 0:02:58]}  g5 {[%clk 0:02:49]} 9. Bg3 {[%clk 0:02:58]}  Ne4 {[%clk 0:02:49]} 10. Qc2 {[%clk 0:02:57]}  f5 {[%clk 0:02:45]} 11. f3 {[%clk 0:02:54]}  Nxg3 {[%clk 0:02:42]} 12. hxg3 {[%clk 0:02:53]}  d6 {[%clk 0:02:42]} 13. O-O-O {[%clk 0:02:46]}  Nd7 {[%clk 0:02:40]} 14. e3 {[%clk 0:02:36]}  Qe7 {[%clk 0:02:40]} 15. Ne2 {[%clk 0:02:35]}  O-O-O {[%clk 0:02:40]} 16. Nc3 {[%clk 0:02:34]}  Kb8 {[%clk 0:02:40]} 17. Kb1 {[%clk 0:02:34]}  h5 {[%clk 0:02:38]} 18. e4 {[%clk 0:02:23]}  fxe4 {[%clk 0:02:32]} 19. Nxe4 {[%clk 0:02:22]}  Rdf8 {[%clk 0:02:15]} 20. Bd3 {[%clk 0:02:17]}  g4 {[%clk 0:01:58]} 21. f4 {[%clk 0:02:13]}  h4 {[%clk 0:01:56]} 22. Qf2 {[%clk 0:01:57]}  e5 {[%clk 0:01:55]} 23. dxe5 {[%clk 0:01:49]}  Nxe5 {[%clk 0:01:45]} 24. Bc2 {[%clk 0:01:46]}  Nxc4 {[%clk 0:01:43]} 25. Rhe1 {[%clk 0:01:41]}  Qg7 {[%clk 0:01:36]} 26. Bb3 {[%clk 0:01:29]}  hxg3 {[%clk 0:01:20]} 27. Nxg3 {[%clk 0:01:28]}  Rxf4 {[%clk 0:01:16]} 28. Qc2 {[%clk 0:01:23]}  Ne5 {[%clk 0:01:07]} 29. Ka2 {[%clk 0:01:13]}  Rhf8 {[%clk 0:01:05]} 30. Rd2 {[%clk 0:01:11]}  a5 {[%clk 0:01:05]} 31. Rc1 {[%clk 0:01:09]}  Qd7 {[%clk 0:00:49]} 32. Ka1 {[%clk 0:01:06]}  a4 {[%clk 0:00:48]} 33. Ba2 {[%clk 0:01:04]}  Qc6 {[%clk 0:00:34]} 34. Qd1 {[%clk 0:01:02]}  Qb5 {[%clk 0:00:31]} 35. Qc2 {[%clk 0:00:54]}  Ka7 {[%clk 0:00:28]} 36. Rcd1 {[%clk 0:00:48]}  Nc4 {[%clk 0:00:22]} 37. Re2 {[%clk 0:00:40]}  d5 {[%clk 0:00:15]} 38. Rde1 {[%clk 0:00:35]}  Qc5 {[%clk 0:00:15]} 39. Qxa4+ {[%clk 0:00:32]}  Qa5 {[%clk 0:00:14]} 40. Qd1 {[%clk 0:00:29]}  Rf2 {[%clk 0:00:14]} 41. Bxc4 {[%clk 0:00:09]}  dxc4 {[%clk 0:00:13]} 42. Qd4 {[%clk 0:00:09]}  Rxe2 {[%clk 0:00:13]} 43. Rxe2 {[%clk 0:00:09]}  Qb5 {[%clk 0:00:12]} 44. Qc3 {[%clk 0:00:06]}  Rd8 {[%clk 0:00:10]} 45. Rd2 {[%clk 0:00:04]}  Rd3 {[%clk 0:00:10]} 46. Rxd3 {[%clk 0:00:03]}  cxd3 {[%clk 0:00:11]} 47. Nf1 {[%clk 0:00:03]}  Qd5 {[%clk 0:00:11]} 48. g3 {[%clk 0:00:02]}  Qf3 {[%clk 0:00:10]} 49. Nd2 {[%clk 0:00:02]}  Qd1+ {[%clk 0:00:10]} 50. Ka2 {[%clk 0:00:02]}  Bd5+ {[%clk 0:00:11]} 51. b3 {[%clk 0:00:02]}  Kb7 {[%clk 0:00:11]} 52. Kb2 {[%clk 0:00:02]}  Qe2 {[%clk 0:00:10]} 53. a4 {[%clk 0:00:02]}  Bc6 {[%clk 0:00:10]} 54. a5 {[%clk 0:00:01]}  bxa5 {[%clk 0:00:10]} 55. Qxa5 {[%clk 0:00:01]}  Kc8 {[%clk 0:00:10]} 56. Qc3 {[%clk 0:00:02]}  Kd7 {[%clk 0:00:11]} 57. Qd4+ {[%clk 0:00:02]}  Ke7 {[%clk 0:00:10]} 58. Qf4 {[%clk 0:00:02]}  Bd7 {[%clk 0:00:09]} 59. Qg5+ {[%clk 0:00:01]}  Kd6 {[%clk 0:00:09]} 60. Qf4+ {[%clk 0:00:01]}  Qe5+ {[%clk 0:00:08]} 61. Qxe5+ {[%clk 0:00:02]}  Kxe5 {[%clk 0:00:09]} 62. Kc3 {[%clk 0:00:03]}  Bf5 {[%clk 0:00:10]} 63. b4 {[%clk 0:00:02]}  Kd5 {[%clk 0:00:10]} 64. Nc4 {[%clk 0:00:01]}  Ke4 {[%clk 0:00:10]} 65. b5 {[%clk 0:00:01]}  Kf3 {[%clk 0:00:10]} 66. b6 {[%clk 0:00:01]}  cxb6 {[%clk 0:00:10]} 67. Nxb6 {[%clk 0:00:01]}  Kxg3 {[%clk 0:00:11]} 68. Nd5 {[%clk 0:00:01]}  Kf2 {[%clk 0:00:11]} 69. Nf4 {[%clk 0:00:01]}  g3 {[%clk 0:00:11]} 70. Kd2 {[%clk 0:00:01]}  g2 {[%clk 0:00:11]} 71. Nxg2 {[%clk 0:00:01]}  Kxg2 {[%clk 0:00:12]} 72. Ke3 {[%clk 0:00:01]}  Kf1 {[%clk 0:00:12]} 73. Kd2 {[%clk 0:00:01]}  Kf2 {[%clk 0:00:13]} 74. Kd1 {[%clk 0:00:01]}  Ke3 {[%clk 0:00:13]} 0-1


[Site "https://www.chess.com"]

[Event "Titled Tuesday Blitz August 31 2021"]
[White "Mokshanov, Alexey"]
[Black "Kuzubov, Yuriy"]
[WhiteFideId "24121657"]
[BlackFideId "14112906"]
[WhiteElo "2262"]
[BlackElo "2564"]
[Result "0-1"]
[Round "11"]
[TimeControl "180+1"]
[Date "2021.08.31"]
[WhiteClock "0:00:18"]
[BlackClock "0:00:30"]

1. e4 {[%clk 0:03:00]}  c6 {[%clk 0:03:00]} 2. d4 {[%clk 0:03:00]}  d5 {[%clk 0:03:01]} 3. e5 {[%clk 0:03:01]}  Bf5 {[%clk 0:03:01]} 4. h4 {[%clk 0:03:01]}  h6 {[%clk 0:03:00]} 5. g4 {[%clk 0:02:59]}  Bd7 {[%clk 0:03:00]} 6. Be3 {[%clk 0:02:56]}  e6 {[%clk 0:03:00]} 7. f4 {[%clk 0:02:56]}  Qc7 {[%clk 0:02:56]} 8. Nf3 {[%clk 0:02:53]}  c5 {[%clk 0:02:56]} 9. h5 {[%clk 0:02:48]}  Nc6 {[%clk 0:02:52]} 10. c3 {[%clk 0:02:47]}  f6 {[%clk 0:02:35]} 11. Bd3 {[%clk 0:02:46]}  O-O-O {[%clk 0:02:35]} 12. Na3 {[%clk 0:02:40]}  a6 {[%clk 0:02:30]} 13. Nc2 {[%clk 0:02:40]}  Nge7 {[%clk 0:02:23]} 14. Nh4 {[%clk 0:02:30]}  Kb8 {[%clk 0:02:16]} 15. Qd2 {[%clk 0:02:04]}  Rc8 {[%clk 0:02:14]} 16. O-O {[%clk 0:01:59]}  Ka8 {[%clk 0:02:08]} 17. Rac1 {[%clk 0:01:45]}  Rg8 {[%clk 0:02:01]} 18. Bh7 {[%clk 0:01:44]}  Rh8 {[%clk 0:02:01]} 19. Bd3 {[%clk 0:01:44]}  c4 {[%clk 0:01:49]} 20. Be2 {[%clk 0:01:43]}  Rg8 {[%clk 0:01:50]} 21. Kh1 {[%clk 0:01:22]}  Be8 {[%clk 0:01:32]} 22. Rg1 {[%clk 0:01:03]}  fxe5 {[%clk 0:01:26]} 23. fxe5 {[%clk 0:01:03]}  g5 {[%clk 0:01:26]} 24. Nf3 {[%clk 0:00:46]}  Bf7 {[%clk 0:01:25]} 25. Rgf1 {[%clk 0:00:45]}  Rg7 {[%clk 0:01:25]} 26. Rcd1 {[%clk 0:00:43]}  Bg8 {[%clk 0:01:25]} 27. Nce1 {[%clk 0:00:41]}  Bh7 {[%clk 0:01:24]} 28. Ng2 {[%clk 0:00:41]}  Qa5 {[%clk 0:01:16]} 29. Ra1 {[%clk 0:00:41]}  Qb6 {[%clk 0:01:09]} 30. Bd1 {[%clk 0:00:41]}  Re8 {[%clk 0:01:07]} 31. b4 {[%clk 0:00:40]}  cxb3 {[%clk 0:01:01]} 32. axb3 {[%clk 0:00:40]}  Nc8 {[%clk 0:01:00]} 33. Bc2 {[%clk 0:00:38]}  Bxc2 {[%clk 0:00:58]} 34. Qxc2 {[%clk 0:00:39]}  Qc7 {[%clk 0:00:54]} 35. Qe2 {[%clk 0:00:33]}  Kb8 {[%clk 0:00:51]} 36. Nge1 {[%clk 0:00:30]}  Rf7 {[%clk 0:00:50]} 37. Nd3 {[%clk 0:00:26]}  Nb6 {[%clk 0:00:49]} 38. Nd2 {[%clk 0:00:25]}  Rxf1+ {[%clk 0:00:39]} 39. Rxf1 {[%clk 0:00:24]}  Na5 {[%clk 0:00:39]} 40. Qf3 {[%clk 0:00:20]}  Qxc3 {[%clk 0:00:34]} 41. Qf7 {[%clk 0:00:20]}  Rc8 {[%clk 0:00:33]} 42. Nc5 {[%clk 0:00:18]}  Qxe3 {[%clk 0:00:30]} 0-1


[Site "https://www.chess.com"]

[Event "Titled Tuesday Blitz August 31 2021"]
[White "Moroni, Luca Jr"]
[Black "Hansen, Eric"]
[WhiteFideId "865834"]
[BlackFideId "2606771"]
[WhiteElo "2491"]
[BlackElo "2568"]
[Result "1-0"]
[Round "11"]
[TimeControl "180+1"]
[Date "2021.08.31"]
[WhiteClock "0:00:03"]
[BlackClock "0:00:03"]

1. d4 {[%clk 0:03:00]}  Nf6 {[%clk 0:02:06]} 2. c4 {[%clk 0:03:00]}  e6 {[%clk 0:02:05]} 3. Nc3 {[%clk 0:03:00]}  Bb4 {[%clk 0:02:05]} 4. Nf3 {[%clk 0:03:00]}  O-O {[%clk 0:02:05]} 5. Bg5 {[%clk 0:02:59]}  h6 {[%clk 0:02:04]} 6. Bh4 {[%clk 0:02:59]}  c5 {[%clk 0:02:05]} 7. Rc1 {[%clk 0:02:59]}  cxd4 {[%clk 0:02:04]} 8. Nxd4 {[%clk 0:03:00]}  d5 {[%clk 0:02:03]} 9. cxd5 {[%clk 0:03:00]}  Qxd5 {[%clk 0:01:11]} 10. Bxf6 {[%clk 0:02:57]}  gxf6 {[%clk 0:01:12]} 11. e3 {[%clk 0:02:57]}  Nc6 {[%clk 0:01:10]} 12. Qg4+ {[%clk 0:02:39]}  Kh7 {[%clk 0:01:06]} 13. Nxc6 {[%clk 0:02:21]}  Bxc3+ {[%clk 0:01:02]} 14. Rxc3 {[%clk 0:02:21]}  bxc6 {[%clk 0:01:01]} 15. Bc4 {[%clk 0:02:06]}  Qe5 {[%clk 0:01:01]} 16. Qg3 {[%clk 0:01:45]}  Qa5 {[%clk 0:00:42]} 17. O-O {[%clk 0:01:41]}  Rg8 {[%clk 0:00:36]} 18. Qf4 {[%clk 0:01:22]}  Rg6 {[%clk 0:00:31]} 19. Be2 {[%clk 0:01:18]}  Kg7 {[%clk 0:00:27]} 20. h4 {[%clk 0:01:02]}  Ba6 {[%clk 0:00:18]} 21. Ra3 {[%clk 0:00:54]}  Qxa3 {[%clk 0:00:16]} 22. bxa3 {[%clk 0:00:55]}  Bxe2 {[%clk 0:00:16]} 23. Re1 {[%clk 0:00:55]}  Ba6 {[%clk 0:00:12]} 24. Rd1 {[%clk 0:00:51]}  c5 {[%clk 0:00:08]} 25. Qc7 {[%clk 0:00:34]}  Be2 {[%clk 0:00:03]} 26. Rd7 {[%clk 0:00:26]}  Rf8 {[%clk 0:00:03]} 27. Kh2 {[%clk 0:00:26]}  c4 {[%clk 0:00:02]} 28. f3 {[%clk 0:00:21]}  Bd3 {[%clk 0:00:01]} 29. g4 {[%clk 0:00:17]}  h5 {[%clk 0:00:01]} 30. gxh5 {[%clk 0:00:16]}  Rh6 {[%clk 0:00:02]} 31. Qg3+ {[%clk 0:00:13]}  Kh7 {[%clk 0:00:02]} 32. Qd6 {[%clk 0:00:13]}  Kg7 {[%clk 0:00:02]} 33. Qxe6 {[%clk 0:00:10]}  Rxh5 {[%clk 0:00:02]} 34. Qg4+ {[%clk 0:00:10]}  Bg6 {[%clk 0:00:02]} 35. Qxc4 {[%clk 0:00:09]}  Rfh8 {[%clk 0:00:02]} 36. Kg3 {[%clk 0:00:09]}  Re5 {[%clk 0:00:02]} 37. e4 {[%clk 0:00:06]}  Reh5 {[%clk 0:00:02]} 38. Rxa7 {[%clk 0:00:04]}  Rxh4 {[%clk 0:00:03]} 39. Qd4 {[%clk 0:00:02]}  Rh3+ {[%clk 0:00:03]} 40. Kf2 {[%clk 0:00:03]}  Rh2+ {[%clk 0:00:03]} 41. Ke3 {[%clk 0:00:03]}  Re8 {[%clk 0:00:04]} 42. Ra6 {[%clk 0:00:03]}  Rxa2 {[%clk 0:00:02]} 43. Rxf6 {[%clk 0:00:01]}  Rxa3+ {[%clk 0:00:02]} 44. Kf4 {[%clk 0:00:02]}  Kg8 {[%clk 0:00:02]} 45. Rxg6+ {[%clk 0:00:02]}  fxg6 {[%clk 0:00:03]} 46. Qd6 {[%clk 0:00:02]}  Ra7 {[%clk 0:00:02]} 47. Qxg6+ {[%clk 0:00:02]}  Kf8 {[%clk 0:00:03]} 48. Qh6+ {[%clk 0:00:03]}  Kg8 {[%clk 0:00:03]} 49. e5 {[%clk 0:00:02]}  Rh7 {[%clk 0:00:03]} 50. Qg6+ {[%clk 0:00:02]}  Kh8 {[%clk 0:00:01]} 51. Qxe8+ {[%clk 0:00:01]}  Kg7 {[%clk 0:00:02]} 52. Qe7+ {[%clk 0:00:02]}  Kg6 {[%clk 0:00:03]} 53. Qxh7+ {[%clk 0:00:03]}  Kxh7 {[%clk 0:00:03]} 54. Kf5 {[%clk 0:00:03]} 1-0


[Site "https://www.chess.com"]

[Event "Titled Tuesday Blitz August 31 2021"]
[White "Mukhutdinov, Tigran"]
[Black "Tomiello, Mateus Costamilan"]
[WhiteFideId "34108570"]
[BlackFideId "22701958"]
[WhiteElo "2154"]
[BlackElo "1975"]
[Result "1-0"]
[Round "11"]
[TimeControl "180+1"]
[Date "2021.08.31"]
[WhiteClock "0:01:28"]
[BlackClock "0:00:07"]

1. Nf3 {[%clk 0:03:00]}  d5 {[%clk 0:02:59]} 2. g3 {[%clk 0:03:01]}  Nf6 {[%clk 0:02:59]} 3. Bg2 {[%clk 0:03:01]}  Bg4 {[%clk 0:02:57]} 4. c4 {[%clk 0:03:01]}  c6 {[%clk 0:02:58]} 5. Ne5 {[%clk 0:03:00]}  Be6 {[%clk 0:02:55]} 6. cxd5 {[%clk 0:03:00]}  Bxd5 {[%clk 0:02:54]} 7. Nf3 {[%clk 0:03:01]}  e5 {[%clk 0:02:36]} 8. Nc3 {[%clk 0:03:00]}  Nbd7 {[%clk 0:02:36]} 9. Nxd5 {[%clk 0:02:58]}  cxd5 {[%clk 0:02:36]} 10. O-O {[%clk 0:02:59]}  Bd6 {[%clk 0:02:29]} 11. d4 {[%clk 0:02:55]}  e4 {[%clk 0:02:26]} 12. Nh4 {[%clk 0:02:56]}  O-O {[%clk 0:02:23]} 13. Nf5 {[%clk 0:02:52]}  Bc7 {[%clk 0:02:20]} 14. Qb3 {[%clk 0:02:48]}  Nb6 {[%clk 0:02:14]} 15. Bg5 {[%clk 0:02:41]}  Re8 {[%clk 0:01:51]} 16. Ne3 {[%clk 0:02:35]}  Re6 {[%clk 0:01:10]} 17. Rac1 {[%clk 0:02:22]}  h6 {[%clk 0:01:00]} 18. Bxf6 {[%clk 0:02:14]}  Rxf6 {[%clk 0:01:00]} 19. Rc5 {[%clk 0:02:10]}  Bd6 {[%clk 0:00:52]} 20. Nxd5 {[%clk 0:02:09]}  Re6 {[%clk 0:00:36]} 21. Nxb6 {[%clk 0:02:04]}  Qxb6 {[%clk 0:00:30]} 22. Qxb6 {[%clk 0:02:02]}  axb6 {[%clk 0:00:31]} 23. Rb5 {[%clk 0:02:03]}  Rxa2 {[%clk 0:00:31]} 24. Rxb6 {[%clk 0:02:02]}  e3 {[%clk 0:00:24]} 25. Bd5 {[%clk 0:01:59]}  exf2+ {[%clk 0:00:21]} 26. Kg2 {[%clk 0:01:51]}  Ra4 {[%clk 0:00:11]} 27. Bxe6 {[%clk 0:01:48]}  Rxd4 {[%clk 0:00:09]} 28. Bg4 {[%clk 0:01:44]}  g6 {[%clk 0:00:08]} 29. Bf3 {[%clk 0:01:41]}  Rd2 {[%clk 0:00:05]} 30. Rxb7 {[%clk 0:01:41]}  Bc5 {[%clk 0:00:05]} 31. b4 {[%clk 0:01:39]}  Bd4 {[%clk 0:00:04]} 32. b5 {[%clk 0:01:39]}  Kg7 {[%clk 0:00:04]} 33. Rd7 {[%clk 0:01:38]}  Kf6 {[%clk 0:00:02]} 34. Rxf2 {[%clk 0:01:38]}  Ke6 {[%clk 0:00:02]} 35. Rxd4 {[%clk 0:01:31]}  Rxd4 {[%clk 0:00:03]} 36. Rf1 {[%clk 0:01:32]}  Rb4 {[%clk 0:00:03]} 37. Bc6 {[%clk 0:01:32]}  f5 {[%clk 0:00:02]} 38. Kf2 {[%clk 0:01:32]}  Ke5 {[%clk 0:00:03]} 39. Rd1 {[%clk 0:01:32]}  g5 {[%clk 0:00:03]} 40. Rd5+ {[%clk 0:01:32]}  Ke6 {[%clk 0:00:04]} 41. Rd8 {[%clk 0:01:31]}  Ke5 {[%clk 0:00:04]} 42. Re8+ {[%clk 0:01:31]}  Kf6 {[%clk 0:00:04]} 43. Rb8 {[%clk 0:01:31]}  f4 {[%clk 0:00:04]} 44. gxf4 {[%clk 0:01:30]}  Rxf4+ {[%clk 0:00:05]} 45. Ke1 {[%clk 0:01:28]}  Rb4 {[%clk 0:00:06]} 46. b6 {[%clk 0:01:28]}  Ke7 {[%clk 0:00:06]} 47. b7 {[%clk 0:01:28]}  Kd6 {[%clk 0:00:07]} 48. Bf3 {[%clk 0:01:28]}  Kc7 {[%clk 0:00:07]} 49. Rc8+ {[%clk 0:01:28]} 1-0


[Site "https://www.chess.com"]

[Event "Titled Tuesday Blitz August 31 2021"]
[White "Novikova, Galina"]
[Black "Eswaran, Ashritha"]
[WhiteFideId "4157095"]
[BlackFideId "2080788"]
[WhiteElo "1907"]
[BlackElo "2451"]
[Result "1-0"]
[Round "11"]
[TimeControl "180+1"]
[Date "2021.08.31"]
[WhiteClock "0:02:21"]
[BlackClock "0:01:48"]

1. e4 {[%clk 0:03:00]}  c5 {[%clk 0:02:59]} 2. Nf3 {[%clk 0:03:00]}  d6 {[%clk 0:02:59]} 3. d4 {[%clk 0:03:00]}  cxd4 {[%clk 0:02:59]} 4. Nxd4 {[%clk 0:03:01]}  Nf6 {[%clk 0:02:58]} 5. Nc3 {[%clk 0:03:02]}  g6 {[%clk 0:02:58]} 6. Be3 {[%clk 0:03:00]}  Bg7 {[%clk 0:02:58]} 7. f3 {[%clk 0:03:00]}  Nc6 {[%clk 0:02:59]} 8. Qd2 {[%clk 0:03:01]}  O-O {[%clk 0:02:59]} 9. g4 {[%clk 0:03:02]}  Be6 {[%clk 0:02:58]} 10. h4 {[%clk 0:03:02]}  Rc8 {[%clk 0:02:56]} 11. h5 {[%clk 0:03:02]}  Nxd4 {[%clk 0:02:56]} 12. Bxd4 {[%clk 0:03:02]}  Bc4 {[%clk 0:02:54]} 13. hxg6 {[%clk 0:02:54]}  fxg6 {[%clk 0:02:53]} 14. g5 {[%clk 0:02:51]}  Nh5 {[%clk 0:02:38]} 15. Bxg7 {[%clk 0:02:51]}  Nxg7 {[%clk 0:02:36]} 16. Bxc4+ {[%clk 0:02:50]}  e6 {[%clk 0:02:26]} 17. Bb3 {[%clk 0:02:47]}  Rxf3 {[%clk 0:02:24]} 18. O-O-O {[%clk 0:02:46]}  Rc6 {[%clk 0:02:19]} 19. Qh2 {[%clk 0:02:42]}  Qxg5+ {[%clk 0:02:18]} 20. Kb1 {[%clk 0:02:41]}  h5 {[%clk 0:02:14]} 21. Rxd6 {[%clk 0:02:40]}  Rxd6 {[%clk 0:02:02]} 22. Qxd6 {[%clk 0:02:41]}  Qg2 {[%clk 0:02:01]} 23. Bxe6+ {[%clk 0:02:28]}  Kh7 {[%clk 0:01:56]} 24. Rd1 {[%clk 0:02:26]}  Rf6 {[%clk 0:01:49]} 25. Bg8+ {[%clk 0:02:21]}  Kxg8 {[%clk 0:01:48]} 26. Qxf6 {[%clk 0:02:21]} 1-0


[Site "https://www.chess.com"]

[Event "Titled Tuesday Blitz August 31 2021"]
[White "Nozdrachev, Leonid"]
[Black "Prydun, Andriy"]
[WhiteFideId "24113433"]
[BlackFideId "14145898"]
[WhiteElo "2240"]
[BlackElo "2047"]
[Result "1-0"]
[Round "11"]
[TimeControl "180+1"]
[Date "2021.08.31"]
[WhiteClock "0:02:42"]
[BlackClock "0:01:38"]

1. e4 {[%clk 0:03:00]}  e6 {[%clk 0:02:45]} 2. Nf3 {[%clk 0:02:59]}  d5 {[%clk 0:02:45]} 3. e5 {[%clk 0:02:59]}  Ne7 {[%clk 0:02:43]} 4. d4 {[%clk 0:02:58]}  c5 {[%clk 0:02:41]} 5. c3 {[%clk 0:02:58]}  Nbc6 {[%clk 0:02:40]} 6. Bd3 {[%clk 0:02:58]}  Qb6 {[%clk 0:02:40]} 7. O-O {[%clk 0:02:57]}  Bd7 {[%clk 0:02:39]} 8. Na3 {[%clk 0:02:51]}  cxd4 {[%clk 0:02:34]} 9. cxd4 {[%clk 0:02:52]}  Nxd4 {[%clk 0:02:33]} 10. Nxd4 {[%clk 0:02:52]}  Qxd4 {[%clk 0:02:33]} 11. Nb5 {[%clk 0:02:45]}  Qxe5 {[%clk 0:02:32]} 12. Qf3 {[%clk 0:02:45]}  g5 {[%clk 0:01:40]} 13. Bxg5 {[%clk 0:02:43]}  Qxg5 {[%clk 0:01:38]} 14. Nd6+ {[%clk 0:02:42]} 1-0


[Site "https://www.chess.com"]

[Event "Titled Tuesday Blitz August 31 2021"]
[White "Ovchinnikov, Vsevolod"]
[Black "Lopez Gracia, Fernando"]
[WhiteFideId "24176842"]
[BlackFideId "2207184"]
[WhiteElo "2376"]
[BlackElo "2397"]
[Result "1-0"]
[Round "11"]
[TimeControl "180+1"]
[Date "2021.08.31"]
[WhiteClock "0:01:32"]
[BlackClock "0:00:47"]

1. d4 {[%clk 0:03:00]}  Nf6 {[%clk 0:02:58]} 2. c4 {[%clk 0:03:01]}  e6 {[%clk 0:02:58]} 3. g3 {[%clk 0:03:02]}  c5 {[%clk 0:02:57]} 4. d5 {[%clk 0:03:02]}  d6 {[%clk 0:02:57]} 5. Nc3 {[%clk 0:03:02]}  exd5 {[%clk 0:02:58]} 6. cxd5 {[%clk 0:03:03]}  g6 {[%clk 0:02:58]} 7. Nf3 {[%clk 0:03:03]}  Bg7 {[%clk 0:02:59]} 8. Bg2 {[%clk 0:03:04]}  O-O {[%clk 0:03:00]} 9. O-O {[%clk 0:03:05]}  Re8 {[%clk 0:02:57]} 10. Bf4 {[%clk 0:03:05]}  Qd7 {[%clk 0:02:52]} 11. Nd2 {[%clk 0:02:49]}  b5 {[%clk 0:02:51]} 12. a4 {[%clk 0:02:49]}  b4 {[%clk 0:02:47]} 13. Nb5 {[%clk 0:02:49]}  Ba6 {[%clk 0:02:43]} 14. Re1 {[%clk 0:02:33]}  Bf8 {[%clk 0:02:21]} 15. Nc4 {[%clk 0:02:30]}  Bxb5 {[%clk 0:02:15]} 16. axb5 {[%clk 0:02:30]}  Ne4 {[%clk 0:02:06]} 17. Nb6 {[%clk 0:02:18]}  Qb7 {[%clk 0:01:52]} 18. Nxa8 {[%clk 0:02:18]}  Qxa8 {[%clk 0:01:53]} 19. f3 {[%clk 0:02:13]}  Nf6 {[%clk 0:01:51]} 20. e4 {[%clk 0:02:14]}  Nbd7 {[%clk 0:01:50]} 21. Qa4 {[%clk 0:02:13]}  Qb7 {[%clk 0:01:43]} 22. Bf1 {[%clk 0:02:11]}  Nb6 {[%clk 0:01:31]} 23. Qxa7 {[%clk 0:01:50]}  Qxa7 {[%clk 0:01:30]} 24. Rxa7 {[%clk 0:01:51]}  Nbxd5 {[%clk 0:01:31]} 25. Bd2 {[%clk 0:01:48]}  Nb6 {[%clk 0:01:22]} 26. Rb7 {[%clk 0:01:42]}  Na4 {[%clk 0:01:22]} 27. b3 {[%clk 0:01:40]}  Nc3 {[%clk 0:01:19]} 28. Bc4 {[%clk 0:01:40]}  d5 {[%clk 0:01:04]} 29. exd5 {[%clk 0:01:40]}  Rxe1+ {[%clk 0:01:02]} 30. Bxe1 {[%clk 0:01:41]}  Nfxd5 {[%clk 0:01:00]} 31. b6 {[%clk 0:01:33]}  Bg7 {[%clk 0:00:47]} 32. Rb8+ {[%clk 0:01:32]} 1-0


[Site "https://www.chess.com"]